fUST/lending_fUST_20240912
["ID","MTS","AMOUNT","RATE_DAILY","PERIOD"]
[337794860,1726122650636,-735.34,0.00016986,2]
[337794861,1726122650647,-517.47,0.00016986,2]
[337794862,1726122650656,-500.0,0.00016986,2]
[337794863,1726122650666,-644.26,0.00016986,2]
[337794864,1726122650677,-754.99,0.00016986,2]
[337794865,1726122650688,-500.0,0.00016986,2]
[337794866,1726122650698,-676.43,0.00016986,2]
[337794867,1726122650708,-500.0,0.00016986,2]
[337794868,1726122650718,-788.55,0.00016986,2]
[337794869,1726122650728,-500.0,0.00016986,2]
[337794870,1726122650738,-151.0,0.00016986,2]
[337794871,1726122650747,-500.0,0.00016986,2]
[337794872,1726122650757,-500.0,0.00016986,2]
[337794873,1726122650768,-372.777102,0.00016986,2]
[337794874,1726122650778,-151.0,0.00016986,2]
[337794875,1726122650787,-500.0,0.00016986,2]
[337794876,1726122650801,-372.777102,0.00016986,2]
[337794877,1726122650812,-500.0,0.00016986,2]
[337794878,1726122650822,-500.0,0.00016986,2]
[337794879,1726122650831,-721.96,0.00016986,2]
[337794880,1726122650842,-500.0,0.00016986,2]
[337794881,1726122650853,-661.5,0.00016986,2]
[337794882,1726122650862,-1023.53,0.00016986,2]
[337794883,1726122650873,-500.0,0.00016986,2]
[337794884,1726122650882,-500.0,0.00016986,2]
[337794885,1726122650892,-874.47,0.00016986,2]
[337794886,1726122650902,-151.0,0.00016986,2]
[337794887,1726122650912,-500.0,0.00016986,2]
[337794888,1726122650922,-875.81,0.00016986,2]
[337794889,1726122650934,-1669.962575,0.00016986,2]
[337794890,1726122650945,-552.44,0.00016986,2]
[337794891,1726122650955,-1669.962575,0.00016986,2]
[337794892,1726122650965,-500.0,0.00016986,2]
[337794893,1726122650975,-500.0,0.00016986,2]
[337794894,1726122650987,-500.0,0.00016986,2]
[337794895,1726122650998,-989.83,0.00016986,2]
[337794896,1726122651008,-503.7,0.00016986,2]
[337794897,1726122651018,-415.6321159,0.00016986,2]
[337794898,1726122651028,-151.0,0.00016986,2]
[337794899,1726122651038,-201.25,0.00016986,2]
[337794900,1726122651048,-1293.33,0.00016986,2]
[337794901,1726122651059,-606.24,0.00016986,2]
[337794902,1726122651069,-530.54,0.00016986,2]
[337794903,1726122651079,-500.0,0.00016986,2]
[337794904,1726122651088,-1677.78,0.00016986,2]
[337794905,1726122651098,-500.0,0.00016986,2]
[337794906,1726122651109,-686.72,0.00016986,2]
[337794907,1726122651120,-154.556938,0.00016986,2]
[337794908,1726122651130,-654.09,0.00016986,2]
[337794909,1726122651140,-924.25,0.00016986,2]
[337794910,1726122651151,-500.0,0.00016986,2]
[337794911,1726122651162,-500.0,0.00016986,2]
[337794912,1726122651172,-500.0,0.00016986,2]
[337794913,1726122651183,-13294.17,0.00016986,2]
[337794914,1726122651195,-1017.96,0.00016986,2]
[337794915,1726122651206,-500.0,0.00016986,2]
[337794916,1726122651217,-1166.01,0.00016986,2]
[337794917,1726122651227,-500.0,0.00016986,2]
[337794918,1726122651236,-723.33,0.00016986,2]
[337794919,1726122651246,-500.0,0.00016986,2]
[337794920,1726122651256,-500.0,0.00016986,2]
[337794921,1726122651266,-687.81,0.00016986,2]
[337794922,1726122651276,-8424.57,0.00016986,2]
[337794923,1726122651289,-500.0,0.00016986,2]
[337794924,1726122651299,-500.0,0.00016986,2]
[337794925,1726122651311,-1082.2,0.00016986,2]
[337794926,1726122651322,-1245.24,0.00016986,2]
[337794927,1726122651332,-151.0,0.00016986,2]
[337794928,1726122651343,-986.3,0.00016986,2]
[337794929,1726122651353,-500.0,0.00016986,2]
[337794930,1726122651362,-500.0,0.00016986,2]
[337794931,1726122651373,-151.0,0.00016986,2]
[337794932,1726122651382,-827.85,0.00016986,2]
[337794933,1726122651392,-500.0,0.00016986,2]
[337794934,1726122651407,-689.98,0.00016986,2]
[337794935,1726122651418,-151.0,0.00016986,2]
[337794936,1726122651429,-154.363797,0.00016986,2]
[337794937,1726122651438,-151.0,0.00016986,2]
[337794938,1726122651450,-500.0,0.00016986,2]
[337794939,1726122651461,-151.0,0.00016986,2]
[337794940,1726122651471,-500.0,0.00016986,2]
[337794941,1726122651481,-151.0,0.00016986,2]
[337794942,1726122651491,-738.66,0.00016986,2]
[337794943,1726122651501,-1121.31,0.00016986,2]
[337794944,1726122651511,-1279.42,0.00016986,2]
[337794945,1726122651521,-500.0,0.00016986,2]
[337794946,1726122651531,-942.43,0.00016986,2]
[337794947,1726122651540,-1070.46,0.00016986,2]
[337794948,1726122651550,-500.0,0.00016986,2]
[337794949,1726122651561,-503.12580693,0.00016986,2]
[337794950,1726122651572,-500.0,0.00016986,2]
[337794951,1726122651581,-500.0,0.00016986,2]
[337794952,1726122651591,-11288.47,0.00016986,2]
[337794953,1726122651603,-500.0,0.00016986,2]
[337794954,1726122651613,-1137.51,0.00016986,2]
[337794955,1726122651622,-500.0,0.00016986,2]
[337794956,1726122651633,-1441.18,0.00016986,2]
[337794957,1726122651642,-4740.59,0.00016986,2]
[337794958,1726122651653,-500.0,0.00016986,2]
[337794959,1726122651665,-613.37,0.00016986,2]
[337794960,1726122651674,-500.0,0.00016986,2]
[337794961,1726122651683,-1048.33,0.00016986,2]
[337794962,1726122651692,-500.0,0.00016986,2]
[337794963,1726122651781,-500.0,0.00016986,2]
[337794964,1726122651792,-500.0,0.00016986,2]
[337794965,1726122651801,-541.55,0.00016986,2]
[337794966,1726122651810,-500.0,0.00016986,2]
[337794967,1726122651820,-500.0,0.00016986,2]
[337794968,1726122651829,-508.65,0.00016986,2]
[337794969,1726122651838,-150.112233,0.00017,2]
[337794970,1726122651848,-150.112233,0.000171,2]
[337794971,1726122651858,-500.0,0.0001726,2]
[337794972,1726122651867,-1679.1,0.0001726,2]
[337794973,1726122651877,-500.0,0.0001726,2]
[337794974,1726122651887,-500.0,0.0001726,2]
[337794975,1726122651897,-500.0,0.0001726,2]
[337794976,1726122651906,-500.0,0.0001726,2]
[337794977,1726122651919,-500.0,0.0001726,2]
[337794978,1726122651930,-500.0,0.0001726,2]
[337794979,1726122651940,-583.06560483,0.0001726,2]
[337794980,1726122651950,-500.0,0.0001726,2]
[337794981,1726122651960,-500.0,0.0001726,2]
[337794982,1726122651969,-500.0,0.0001726,2]
[337794983,1726122651978,-500.0,0.0001726,2]
[337794984,1726122651987,-500.0,0.0001726,2]
[337794985,1726122651997,-500.0,0.0001726,2]
[337794986,1726122652006,-500.0,0.0001726,2]
[337794987,1726122652016,-500.0,0.0001726,2]
[337794988,1726122652028,-500.0,0.0001726,2]
[337794989,1726122652045,-500.0,0.0001726,2]
[337794990,1726122652054,-500.0,0.0001726,2]
[337794991,1726122652064,-500.0,0.0001726,2]
[337794992,1726122652073,-500.0,0.0001726,2]
[337794993,1726122652082,-647.37512149,0.0001726,2]
[337794994,1726122652091,-500.0,0.0001726,2]
[337794995,1726122652100,-500.0,0.0001726,2]
[337794996,1726122652110,-500.0,0.0001726,2]
[337794997,1726122652119,-500.0,0.0001726,2]
[337794998,1726122652129,-500.0,0.0001726,2]
[337794999,1726122652138,-500.0,0.0001726,2]
[337795000,1726122652147,-500.0,0.0001726,2]
[337795001,1726122652156,-500.0,0.0001726,2]
[337795002,1726122652166,-500.0,0.0001726,2]
[337795003,1726122652176,-500.0,0.0001726,2]
[337795004,1726122652185,-500.0,0.0001726,2]
[337795005,1726122652194,-500.0,0.0001726,2]
[337795006,1726122652204,-500.0,0.0001726,2]
[337795007,1726122652213,-606.45,0.0001726,2]
[337795008,1726122652223,-500.0,0.0001726,2]
[337795009,1726122652233,-547.67,0.0001726,2]
[337795010,1726122652242,-185.49706415,0.0001726,2]
[337795011,1726122652251,-500.0,0.0001726,2]
[337795012,1726122652260,-500.0,0.0001726,2]
[337795013,1726122652276,-500.0,0.0001726,2]
[337795014,1726122652286,-500.0,0.0001726,2]
[337795015,1726122652295,-768.02,0.0001726,2]
[337795016,1726122652305,-500.0,0.0001726,2]
[337795017,1726122652314,-500.0,0.0001726,2]
[337795018,1726122652324,-500.0,0.0001726,2]
[337795019,1726122652334,-501.04321213,0.0001726,2]
[337795020,1726122652343,-345.14022801,0.0001726,2]
[337795021,1726122652353,-500.0,0.0001726,2]
[337795022,1726122652362,-500.0,0.0001726,2]
[337795023,1726122652372,-500.0,0.0001726,2]
[337795024,1726122652381,-500.0,0.0001726,2]
[337795025,1726122652390,-500.0,0.0001726,2]
[337795026,1726122652399,-676.2,0.0001726,2]
[337795027,1726122652409,-500.0,0.0001726,2]
[337795028,1726122652418,-500.0,0.0001726,2]
[337795029,1726122652428,-500.0,0.0001726,2]
[337795030,1726122652437,-923.39,0.0001726,2]
[337795031,1726122652447,-500.0,0.0001726,2]
[337795032,1726122652456,-500.0,0.0001726,2]
[337795033,1726122652465,-837.8,0.0001726,2]
[337795034,1726122652476,-500.0,0.0001726,2]
[337795035,1726122652486,-640.62,0.0001726,2]
[337795036,1726122652497,-764.4,0.0001726,2]
[337795037,1726122652507,-500.0,0.0001726,2]
[337795038,1726122652516,-805.66,0.0001726,2]
[337795039,1726122652526,-500.0,0.0001726,2]
[337795040,1726122652537,-500.0,0.0001726,2]
[337795041,1726122652546,-500.0,0.0001726,2]
[337795042,1726122652556,-500.0,0.0001726,2]
[337795043,1726122652565,-1430.23,0.0001726,2]
[337795044,1726122652574,-500.0,0.0001726,2]
[337795045,1726122652585,-500.0,0.0001726,2]
[337795046,1726122652603,-500.0,0.0001726,2]
[337795047,1726122652613,-500.0,0.0001726,2]
[337795048,1726122652622,-500.0,0.0001726,2]
[337795049,1726122652631,-502.34,0.0001726,2]
[337795050,1726122652642,-500.0,0.0001726,2]
[337795051,1726122652651,-500.0,0.0001726,2]
[337795052,1726122652661,-500.0,0.0001726,2]
[337795053,1726122652670,-671.27,0.0001726,2]
[337795054,1726122652681,-517.18537564,0.0001726,2]
[337795055,1726122652690,-895.7,0.0001726,2]
[337795056,1726122652700,-768.81,0.0001726,2]
[337795057,1726122652709,-1148.39,0.0001726,2]
[337795058,1726122652720,-643.85408687,0.0001726,2]
[337795059,1726122652731,-151.0,0.0001726,2]
[337795060,1726122652743,-500.0,0.0001726,2]
[337795061,1726122652753,-151.0,0.0001726,2]
[337795062,1726122652763,-610.04,0.0001726,2]
[337795063,1726122652772,-1139.43,0.0001726,2]
[337795064,1726122652782,-500.0,0.0001726,2]
[337795065,1726122652792,-200.0,0.0001726,2]
[337795066,1726122652801,-500.0,0.0001726,2]
[337795067,1726122652811,-500.0,0.0001726,2]
[337795068,1726122652819,-918.66,0.0001726,2]
[337795069,1726122652828,-1489.84,0.0001726,2]
[337795070,1726122652837,-500.0,0.0001726,2]
[337795071,1726122652846,-1213.26,0.0001726,2]
[337795072,1726122652856,-785.08,0.0001726,2]
[337795073,1726122652866,-500.0,0.0001726,2]
[337795074,1726122652876,-500.0,0.0001726,2]
[337795075,1726122652885,-500.0,0.0001726,2]
[337795076,1726122652895,-500.0,0.0001726,2]
[337795077,1726122652905,-526.12,0.0001726,2]
[337795078,1726122652917,-559.03,0.0001726,2]
[337795079,1726122652926,-500.0,0.0001726,2]
[337795080,1726122652937,-1199.92,0.0001726,2]
[337795081,1726122652948,-869.44,0.0001726,2]
[337795082,1726122652959,-1955.63,0.0001726,2]
[337795083,1726122652969,-500.0,0.0001726,2]
[337795084,1726122652978,-1569.81,0.0001726,2]
[337795085,1726122652988,-1065.57,0.0001726,2]
[337795086,1726122652997,-500.0,0.0001726,2]
[337795087,1726122653006,-151.0,0.0001726,2]
[337795088,1726122653015,-500.0,0.0001726,2]
[337795089,1726122653025,-500.0,0.0001726,2]
[337795090,1726122653034,-500.0,0.0001726,2]
[337795091,1726122653044,-500.0,0.0001726,2]
[337795092,1726122653054,-500.0,0.0001726,2]
[337795093,1726122653064,-500.0,0.0001726,2]
[337795094,1726122653074,-500.0,0.0001726,2]
[337795095,1726122653083,-500.0,0.0001726,2]
[337795096,1726122653092,-2034.28,0.0001726,2]
[337795097,1726122653102,-500.0,0.0001726,2]
[337795098,1726122653111,-500.0,0.0001726,2]
[337795099,1726122653121,-622.36157942,0.0001726,2]
[337795100,1726122653131,-1579.76,0.0001726,2]
[337795101,1726122653141,-151.0,0.0001726,2]
[337795102,1726122653150,-500.0,0.0001726,2]
[337795103,1726122653159,-500.0,0.0001726,2]
[337795104,1726122653169,-500.0,0.0001726,2]
[337795105,1726122653179,-500.0,0.0001726,2]
[337795106,1726122653188,-1568.62,0.0001726,2]
[337795107,1726122653197,-500.0,0.0001726,2]
[337795108,1726122653208,-1463.47,0.0001726,2]
[337795109,1726122653217,-1117.49,0.0001726,2]
[337795110,1726122653227,-500.0,0.0001726,2]
[337795111,1726122653237,-785.24,0.0001726,2]
[337795112,1726122653246,-500.0,0.0001726,2]
[337795113,1726122653256,-548.14,0.0001726,2]
[337795114,1726122653267,-500.0,0.0001726,2]
[337795115,1726122653276,-500.0,0.0001726,2]
[337795116,1726122653286,-500.0,0.0001726,2]
[337795117,1726122653297,-720.5,0.0001726,2]
[337795118,1726122653307,-870.69,0.0001726,2]
[337795119,1726122653317,-500.0,0.0001726,2]
[337795120,1726122653329,-500.0,0.0001726,2]
[337795121,1726122653340,-500.0,0.0001726,2]
[337795122,1726122653352,-1185.9,0.0001726,2]
[337795123,1726122653363,-500.0,0.0001726,2]
[337795124,1726122653373,-944.16,0.0001726,2]
[337795125,1726122653384,-527.38638977,0.0001726,2]
[337795126,1726122653394,-598.64296106,0.0001726,2]
[337795127,1726122653403,-151.0,0.0001726,2]
[337795128,1726122653413,-504.68,0.0001726,2]
[337795129,1726122653423,-500.0,0.0001726,2]
[337795130,1726122653433,-660.78,0.0001726,2]
[337795131,1726122653443,-500.0,0.0001726,2]
[337795132,1726122653456,-550.31,0.0001726,2]
[337795133,1726122653466,-500.0,0.0001726,2]
[337795134,1726122653475,-629.39,0.0001726,2]
[337795135,1726122653485,-500.0,0.0001726,2]
[337795136,1726122653495,-982.56,0.0001726,2]
[337795137,1726122653505,-500.0,0.0001726,2]
[337795138,1726122653514,-500.0,0.0001726,2]
[337795139,1726122653525,-500.0,0.0001726,2]
[337795140,1726122653535,-390.264869,0.0001726,2]
[337795141,1726122653544,-390.264869,0.0001726,2]
[337795142,1726122653554,-763.28,0.0001726,2]
[337795143,1726122653563,-1368.07,0.0001726,2]
[337795144,1726122653574,-638.15,0.0001726,2]
[337795145,1726122653584,-500.0,0.0001726,2]
[337795146,1726122653595,-500.0,0.0001726,2]
[337795147,1726122653609,-760.35,0.0001726,2]
[337795148,1726122653619,-500.0,0.0001726,2]
[337795149,1726122653630,-500.0,0.0001726,2]
[337795150,1726122653640,-155.029161,0.0001726,2]
[337795151,1726122653650,-10409.92,0.0001726,2]
[337795152,1726122653660,-417.85233145,0.0001726,2]
[337795153,1726122653670,-1170.91,0.0001726,2]
[337795154,1726122653680,-735.34,0.0001726,2]
[337795155,1726122653690,-517.47,0.0001726,2]
[337795156,1726122653699,-500.0,0.0001726,2]
[337795157,1726122653709,-644.26,0.0001726,2]
[337795158,1726122653719,-754.99,0.0001726,2]
[337795159,1726122653728,-500.0,0.0001726,2]
[337795160,1726122653738,-676.43,0.0001726,2]
[337795161,1726122653748,-788.55,0.0001726,2]
[337795162,1726122653758,-500.0,0.0001726,2]
[337795163,1726122653767,-500.0,0.0001726,2]
[337795164,1726122653778,-500.0,0.0001726,2]
[337795165,1726122653787,-500.0,0.0001726,2]
[337795166,1726122653796,-421.61242394,0.0001726,2]
[337795167,1726122653806,-721.96,0.0001726,2]
[337795168,1726122653815,-661.5,0.0001726,2]
[337795169,1726122653825,-1023.53,0.0001726,2]
[337795170,1726122653834,-500.0,0.0001726,2]
[337795171,1726122653844,-432.82,0.0001726,2]
[337795172,1726122653854,-874.47,0.0001726,2]
[337795173,1726122653863,-500.0,0.0001726,2]
[337795174,1726122653874,-875.81,0.0001726,2]
[337795175,1726122653883,-552.44,0.0001726,2]
[337795176,1726122653894,-503.43974858,0.0001726,2]
[337795177,1726122653903,-585.94011378,0.0001726,2]
[337795178,1726122653913,-500.0,0.0001726,2]
[337795179,1726122653923,-989.83,0.0001726,2]
[337795180,1726122653934,-503.7,0.0001726,2]
[337795181,1726122653944,-1293.33,0.0001726,2]
[337795182,1726122653954,-606.24,0.0001726,2]
[337795183,1726122653964,-530.54,0.0001726,2]
[337795184,1726122653973,-500.0,0.0001726,2]
[337795185,1726122653982,-1677.78,0.0001726,2]
[337795186,1726122653992,-478.89585617,0.0001726,2]
[337795187,1726122654001,-686.72,0.0001726,2]
[337795188,1726122654011,-654.09,0.0001726,2]
[337795189,1726122654021,-924.25,0.0001726,2]
[337795190,1726122654032,-500.0,0.0001726,2]
[337795191,1726122654042,-500.0,0.0001726,2]
[337795192,1726122654051,-500.0,0.0001726,2]
[337795193,1726122654062,-13294.17,0.0001726,2]
[337795194,1726122654073,-1017.96,0.0001726,2]
[337795195,1726122654083,-500.0,0.0001726,2]
[337795196,1726122654093,-1166.01,0.0001726,2]
[337795197,1726122654103,-500.0,0.0001726,2]
[337795198,1726122654113,-500.0,0.0001726,2]
[337795199,1726122654123,-723.33,0.0001726,2]
[337795200,1726122654134,-500.0,0.0001726,2]
[337795201,1726122654144,-687.81,0.0001726,2]
[337795202,1726122654154,-8424.57,0.0001726,2]
[337795203,1726122654164,-500.0,0.0001726,2]
[337795204,1726122654174,-500.0,0.0001726,2]
[337795205,1726122654184,-1082.2,0.0001726,2]
[337795206,1726122654195,-1245.24,0.0001726,2]
[337795207,1726122654205,-157.650588,0.0001726,2]
[337795208,1726122654216,-986.3,0.0001726,2]
[337795209,1726122654226,-500.0,0.0001726,2]
[337795210,1726122654237,-500.0,0.0001726,2]
[337795211,1726122654248,-151.0,0.0001726,2]
[337795212,1726122654259,-827.85,0.0001726,2]
[337795213,1726122654271,-689.98,0.0001726,2]
[337795214,1726122654283,-151.0,0.0001726,2]
[337795215,1726122654294,-151.0,0.0001726,2]
[337795216,1726122654306,-517.46366734,0.0001726,2]
[337795217,1726122654317,-151.0,0.0001726,2]
[337795218,1726122654327,-500.0,0.0001726,2]
[337795219,1726122654339,-151.0,0.0001726,2]
[337795220,1726122654349,-738.66,0.0001726,2]
[337795221,1726122654360,-1121.31,0.0001726,2]
[337795222,1726122654370,-1279.42,0.0001726,2]
[337795223,1726122654380,-500.0,0.0001726,2]
[337795224,1726122654390,-942.43,0.0001726,2]
[337795225,1726122654401,-1070.46,0.0001726,2]
[337795226,1726122654411,-500.0,0.0001726,2]
[337795227,1726122654421,-500.0,0.0001726,2]
[337795228,1726122654431,-500.0,0.0001726,2]
[337795229,1726122654440,-3164.15294529,0.0001726,2]
[337795230,1726122654463,-705.39713821,0.0001726,2]
[337795231,1726122654475,-1204.98630972,0.0001726,2]
[337795232,1726122654722,-26.26395514,0.00016473,2]
[337795233,1726122654735,-473.73604486,0.00016473,2]
[337795234,1726122654745,-6213.93360678,0.0001726,2]
[337795235,1726122654756,-500.0,0.0001726,2]
[337795236,1726122654767,-1137.51,0.0001726,2]
[337795237,1726122654778,-500.0,0.0001726,2]
[337795238,1726122654788,-1441.18,0.0001726,2]
[337795239,1726122654798,-4740.59,0.0001726,2]
[337795240,1726122654808,-500.0,0.0001726,2]
[337795241,1726122654817,-613.37,0.0001726,2]
[337795242,1726122654826,-500.0,0.0001726,2]
[337795243,1726122654836,-1048.33,0.0001726,2]
[337795244,1726122654845,-312.16307283,0.0001726,2]
[337795245,1726122654856,-500.0,0.0001726,2]
[337795246,1726122654867,-541.55,0.0001726,2]
[337795247,1726122654877,-500.0,0.0001726,2]
[337795248,1726122654886,-151.0,0.0001726,2]
[337795249,1726122654896,-508.65,0.0001726,2]
[337795250,1726122654907,-500.0,0.00017273,2]
[337795251,1726122654918,-298.814173,0.00017273,2]
[337795252,1726122654930,-150.112233,0.000173,2]
[337795253,1726122654942,-150.112233,0.000174,2]
[337795254,1726122654953,-150.112233,0.000175,2]
[337795255,1726122654976,-151.0,0.00017534,2]
[337795256,1726122654989,-496.95574706,0.00017534,2]
[337795257,1726122655002,-1679.1,0.00017534,2]
[337795258,1726122655013,-500.0,0.00017534,2]
[337795259,1726122655024,-500.0,0.00017534,2]
[337795260,1726122655041,-500.0,0.00017534,2]
[337795261,1726122655052,-500.0,0.00017534,2]
[337795262,1726122655062,-495.42186676,0.00017534,2]
[337795263,1726122655074,-500.0,0.00017534,2]
[337795264,1726122655085,-500.0,0.00017534,2]
[337795265,1726122655096,-500.0,0.00017534,2]
[337795266,1726122655106,-401.544429,0.00017534,2]
[337795267,1726122655116,-500.0,0.00017534,2]
[337795268,1726122655127,-500.0,0.00017534,2]
[337795269,1726122655137,-500.0,0.00017534,2]
[337795270,1726122655148,-500.0,0.00017534,2]
[337795271,1726122655160,-500.0,0.00017534,2]
[337795272,1726122655171,-500.0,0.00017534,2]
[337795273,1726122655181,-500.0,0.00017534,2]
[337795274,1726122655191,-500.0,0.00017534,2]
[337795275,1726122655201,-500.0,0.00017534,2]
[337795276,1726122655211,-500.0,0.00017534,2]
[337795277,1726122655221,-500.0,0.00017534,2]
[337795278,1726122655232,-500.0,0.00017534,2]
[337795279,1726122655243,-500.0,0.00017534,2]
[337795280,1726122655253,-500.0,0.00017534,2]
[337795281,1726122655263,-500.0,0.00017534,2]
[337795282,1726122655275,-500.0,0.00017534,2]
[337795283,1726122655294,-500.0,0.00017534,2]
[337795284,1726122655305,-500.0,0.00017534,2]
[337795285,1726122655316,-500.0,0.00017534,2]
[337795286,1726122655328,-500.0,0.00017534,2]
[337795287,1726122655340,-500.0,0.00017534,2]
[337795288,1726122655352,-606.45,0.00017534,2]
[337795289,1726122655365,-547.67,0.00017534,2]
[337795290,1726122655375,-602.72253631,0.00017534,2]
[337795291,1726122655386,-500.0,0.00017534,2]
[337795292,1726122655397,-500.0,0.00017534,2]
[337795293,1726122655407,-500.0,0.00017534,2]
[337795294,1726122655417,-768.02,0.00017534,2]
[337795295,1726122655429,-500.0,0.00017534,2]
[337795296,1726122655439,-500.0,0.00017534,2]
[337795297,1726122655450,-500.0,0.00017534,2]
[337795298,1726122655460,-500.0,0.00017534,2]
[337795299,1726122655472,-500.0,0.00017534,2]
[337795300,1726122655482,-500.0,0.00017534,2]
[337795301,1726122655493,-500.0,0.00017534,2]
[337795302,1726122655503,-676.2,0.00017534,2]
[337795303,1726122655514,-500.0,0.00017534,2]
[337795304,1726122655527,-500.0,0.00017534,2]
[337795305,1726122655538,-923.39,0.00017534,2]
[337795306,1726122655549,-500.0,0.00017534,2]
[337795307,1726122655560,-837.8,0.00017534,2]
[337795308,1726122655571,-500.0,0.00017534,2]
[337795309,1726122655581,-640.62,0.00017534,2]
[337795310,1726122655596,-764.4,0.00017534,2]
[337795311,1726122655612,-500.0,0.00017534,2]
[337795312,1726122655623,-805.66,0.00017534,2]
[337795313,1726122655634,-500.0,0.00017534,2]
[337795314,1726122655646,-500.0,0.00017534,2]
[337795315,1726122655657,-500.0,0.00017534,2]
[337795316,1726122655667,-500.0,0.00017534,2]
[337795317,1726122655679,-1430.23,0.00017534,2]
[337795318,1726122655691,-500.0,0.00017534,2]
[337795319,1726122655701,-500.0,0.00017534,2]
[337795320,1726122655711,-500.0,0.00017534,2]
[337795321,1726122655722,-500.0,0.00017534,2]
[337795322,1726122655732,-500.0,0.00017534,2]
[337795323,1726122655743,-502.34,0.00017534,2]
[337795324,1726122655754,-500.0,0.00017534,2]
[337795325,1726122655764,-500.0,0.00017534,2]
[337795326,1726122655774,-500.0,0.00017534,2]
[337795327,1726122655789,-671.27,0.00017534,2]
[337795328,1726122655799,-895.7,0.00017534,2]
[337795329,1726122655810,-768.81,0.00017534,2]
[337795330,1726122655820,-1148.39,0.00017534,2]
[337795331,1726122655830,-500.0,0.00017534,2]
[337795332,1726122655841,-635.614287,0.00017534,2]
[337795333,1726122655851,-610.04,0.00017534,2]
[337795334,1726122655863,-1139.43,0.00017534,2]
[337795335,1726122655873,-635.614287,0.00017534,2]
[337795336,1726122655883,-500.0,0.00017534,2]
[337795337,1726122655893,-200.0,0.00017534,2]
[337795338,1726122655903,-500.0,0.00017534,2]
[337795339,1726122655913,-500.0,0.00017534,2]
[337795340,1726122655923,-918.66,0.00017534,2]
[337795341,1726122655934,-1489.84,0.00017534,2]
[337795342,1726122655944,-500.0,0.00017534,2]
[337795343,1726122655954,-1213.26,0.00017534,2]
[337795344,1726122655965,-785.08,0.00017534,2]
[337795345,1726122655975,-500.0,0.00017534,2]
[337795346,1726122655985,-500.0,0.00017534,2]
[337795347,1726122655996,-500.0,0.00017534,2]
[337795348,1726122656006,-500.0,0.00017534,2]
[337795349,1726122656017,-526.12,0.00017534,2]
[337795350,1726122656031,-559.03,0.00017534,2]
[337795351,1726122656042,-500.0,0.00017534,2]
[337795352,1726122656054,-189.040594,0.00017534,2]
[337795353,1726122656065,-1199.92,0.00017534,2]
[337795354,1726122656075,-189.040594,0.00017534,2]
[337795355,1726122656087,-869.44,0.00017534,2]
[337795356,1726122656098,-1955.63,0.00017534,2]
[337795357,1726122656110,-500.0,0.00017534,2]
[337795358,1726122656121,-1569.81,0.00017534,2]
[337795359,1726122656132,-1065.57,0.00017534,2]